{"text_format":"1","workbook":"xlsx","n_sheets":4,"sheets":["Startseite","Umtriebsweide","Kurzrasenweide","Daten"],"not_rendered":{"charts":0,"images":7,"macros":1,"external_links":0,"defined_names":19,"comments":0,"pivot_tables":0},"unopened":[],"bounds":{"document_bytes":16777216,"sheet_cells":100000,"rows_first":2000,"rows_last":500,"rows_between":2000,"halvings":0,"cell_chars":16384,"cell_head_chars":4096},"cells_cut":0,"cells_raw":0,"read":"whole","date_system":"1900"}

{"sheet":"Startseite","index":0,"n_rows":16,"n_cols":2,"rows_kept":16,"cut":false,"hidden":false,"merged":[]}
[]
[]
[null,"Anleitung zur Benutzung des Weideplaners in Excel:"]
[]
[null,"1. Den Link zum \"Weideplaner AGFF\" im Browser aktivieren. "]
[null,"2. Die Excel-Datei wird dadurch je nach Voreinstellung im Browser entweder unter «Downloads» im Windows-Explorer "]
[null,"gespeichert oder in einem Fenster geöffnet: Datei herunterladen und speichern (nicht öffnen)."]
[null,"3. Die gespeicherte Excel-Datei im Windows-Explorer anwählen und mit rechter Maustaste anklicken -> «Eigenschaften»."]
[null,"4. In der Registerkarte «Allgemein» ganz unten bei Sicherheit das Kontrollkästchen «Zulassen» anklicken -> OK (siehe Grafik rechts)."]
[null,"5. Teilweise muss  nach dem Öffnen der Excel-Datei oben noch \"Inhalt aktivieren\" angewählt werden. "]
[]
[null,"Bei Problemen wenden Sie sich bitte an info@agff.ch."]
[null,"Der Weideplaner ist eingeschränkt auch in Numbers/ Google Sheets nutzbar. "]
[]
[]
[null,"Wählen Sie unten das Weidesystem, für welches Sie die Weideplanung erstellen möchten: "]

{"sheet":"Umtriebsweide","index":1,"n_rows":52,"n_cols":12,"rows_kept":52,"cut":false,"hidden":false,"merged":[]}
[]
["Umtriebsweide"]
[]
["1. Schritt: Tabelle 1 und 2 ausfüllen. Mit einem Klick ins grüne Feld erscheint ein Pfeil, mit dem eine Auswahlliste ausgeklappt werden kann. "]
["Zutreffende Angabe anwählen. "]
[null,"Tabelle 1:","Höhenlage (m ü. M.)","Boden resp. Lage","Klima","Vegetationsbeginn"]
[null,null,"unter_700","tiefgründig/gute_Lage","trocken","früh"]
[]
[null,"Tabelle 2: ","Tierkategorie","Tagesverzehr (kg TS)"]
[null,null,"Milchkühe",{"$f":"VLOOKUP(C10,Daten!Z45:AA52,2,FALSE)","v":" 14-18"}]
[]
["2. Schritt: Dick umrahmte Felder müssen betriebsspezifisch angepasst werden (Hilfe zu den Tagesverzehren pro Tier: Siehe Tabelle 2)."]
["Durch Anklicken der \"?\"-Schaltfläche erhalten Sie weitere Informationen zu den entsprechenden Zeilen. "]
[]
["Betriebs- und Standortdaten"]
[null,null,"Vorweide","Frühlingsweide","Sommerweide","Herbstweide"]
["A","Start Weidephase\n",{"$f":"VLOOKUP($C$7&$D$7&$E$7&$F$7,Daten!$AD$6:$AJ$37,7,FALSE)","v":"22. Februar"},{"$f":"VLOOKUP($C$7&$D$7&$E$7&$F$7,Daten!$AD$6:$AK$37,8,FALSE)","v":"8. April"},{"$f":"VLOOKUP($C$7&$D$7&$E$7&$F$7,Daten!$AD$6:$AL$37,9,FALSE)","v":"22. Mai"},{"$f":"VLOOKUP($C$7&$D$7&$E$7&$F$7,Daten!$AD$6:$AM$37,10,FALSE)","v":"1. September"}]
["B","Graszuwachs (kg TS/ha/Tag)\n",{"$f":"VLOOKUP($C$7&$D$7&$E$7&$F$7,Daten!$AD$6:$AF$37,3,FALSE)","v":30},{"$f":"VLOOKUP($C$7&$D$7&$E$7&$F$7,Daten!$AD$6:$AG$37,4,FALSE)","v":85},{"$f":"VLOOKUP($C$7&$D$7&$E$7&$F$7,Daten!$AD$6:$AH$37,5,FALSE)","v":35},{"$f":"VLOOKUP($C$7&$D$7&$E$7&$F$7,Daten!$AD$6:$AI$37,6,FALSE)","v":25}]
["C","Anzahl Tiere\n",40,40,40,40]
["D","Totaler Tagesverzehr pro Tier (kg TS/Tier/Tag)\n",16,16,16,16]
["E","Verzehrsanteil Weide während Vegetationsperiode (%)\n",60,100,100,75]
["F","Verzehr Weidefutter (kg TS/Tier/Tag)\n= (Futterbedarf - Ergänzungsfütterung)",{"$f":"C21*C20/100","v":9.6},{"$f":"D21*D20/100","v":16},16,{"$f":"F21*F20/100","v":12}]
["G","Besatzstärke (Tiere/ha)\n= Graszuwachs / Tagesverzehr Weide = B / F",{"$f":"C18/C22","v":3.125},{"$f":"D18/D22","v":5.3125},2.1875,{"$f":"F18/F22","v":2.0833333333333335}]
["H","Flächenbedarf pro Phase (ha) \n= Anzahl Tiere / Besatzstärke = C / G",{"$f":"C19/C23","v":12.8},7.5294117647058822,18.285714285714285,{"$f":"F19/F23","v":19.2}]
["I","Weideruhezeit (Tage)\n ",30,18,28,45]
[]
["Futterdichten",null,null,null,null,null,null,null,"Tabelle 3: In den grünen Feldern gewünschte Einheit auswählen "]
[null,null,"Vorweide","Frühlingsweide","Sommerweide","Herbstweide",null,null,"Umrechnung"]
["J","Ziel Abtriebshöhe (kg TS/ha)\n",73,73,193,193,null,null,"von","cm_RPM","in","kg_TS_pro_ha"]
["K","Ziel Auftriebshöhe (kg TS/ha)\n= (G * F * I) + J",{"$f":"(C23*C22*C25) + C29","v":973},{"$f":"(D23*D22*D25) + D29","v":1603},{"$f":"(E23*E22*E25) + E29","v":1173},{"$f":"(F23*F22*F25) + F29","v":1318},null,null,null,3.5,null,{"$f":"VLOOKUP($J$29&$L$29,Daten!$AG$57:$AH$62,2,FALSE)","v":73}]
["L","Nutzbare Grasmasse (kg TS/ha)\n= Abtriebshöhe - Auftriebshöhe =  J - K",{"$f":"C30-C29","v":900},{"$f":"D30-D29","v":1530},{"$f":"E30-E29","v":980},{"$f":"F30-F29","v":1125},null,null,"* RPM: Rising-Plate-Meter (Platten-Herbometer)"]
[]
["Weideparameter"]
[null,null,"Vorweide","Frühlingsweide","Sommerweide","Herbstweide"]
["M","Flächenbedarf der Herde pro Tag (ha/Herde/Tag)\n= 1/ Grasmasse * Anzahl Tiere * Verzehr Weidefutter = 1/ L*C*F",{"$f":"1/C31*C19*C22","v":0.42666666666666669},{"$f":"1/D31*D19*D22","v":0.4183006535947712},{"$f":"1/E31*E19*E22","v":0.65306122448979598},{"$f":"1/F31*F19*F22","v":0.42666666666666664},null," ","                "]
["N","Flächenbedarf pro Tier und Tag (Aren/Tier/Tag)\n= M / C *100 = Flächenbedarf Herde / Anzahl Tiere * 100",{"$f":"C35/C19*100","v":1.0666666666666669},{"$f":"D35/D19*100","v":1.0457516339869279},{"$f":"E35/E19*100","v":1.6326530612244898},{"$f":"F35/F19*100","v":1.0666666666666667}]
["O","Besatzzeit (Tage)\n ",2,2,2,2]
["P","Koppelgrösse (ha)\n= Flächenbedarf Herde * Besatzzeit = M * O",{"$f":"C37*C35","v":0.85333333333333339},{"$f":"D37*D35","v":0.8366013071895424},{"$f":"E37*E35","v":1.306122448979592},0.85333333333333328]
["Q","Min. benötigte Anzahl Koppeln \n= Weideruhezeit / Besatzzeit = I / O",{"$f":"C25/C37","v":15},{"$f":"D25/D37","v":9},{"$f":"E25/E37","v":14},{"$f":"F25/F37","v":22.5}]
[]
["Koppelplanung"]
["O","Ø Flächenbedarf der Herde pro Tag (ha/Herde/Tag)\n= Durchschnitt Werte M",{"$f":"AVERAGE(C35:F35)","v":0.48117380285447509}]
["P","Koppelgrösse Frühlingsweide (ha)\n = Flächenbedarf Herde pro Tag im Frühling * Besatzzeit ","Koppelgrösse für ",{"$f":"VLOOKUP(C10,Daten!Z45:AB52,3,FALSE)","v":"12 Stunden"},{"$f":"VLOOKUP(C10,Daten!Z45:AF52,7,FALSE)","v":0.2091503267973856},null,null," "]
[null,null,"Koppelgrösse für ",{"$f":"VLOOKUP(C10,Daten!Z45:AC52,4,FALSE)","v":"3 Tage"},{"$f":"VLOOKUP(C10,Daten!Z45:AG52,8,FALSE)","v":1.2549019607843137}]
[]
["Q","Koppelgrösse ganzjährig (ha)\n= Ø Flächenbedarf Herde pro Tag * Besatzzeit ","Koppelgrösse für ",{"$f":"VLOOKUP(C10,Daten!Z45:AB52,3,FALSE)","v":"12 Stunden"},{"$f":"VLOOKUP(C10,Daten!Z45:AH52,9,FALSE)","v":0.24058690142723754},null,null," "]
[null,null,"Koppelgrösse für ",{"$f":"VLOOKUP(C10,Daten!Z45:AC52,4,FALSE)","v":"3 Tage"},{"$f":"VLOOKUP(C10,Daten!Z45:AI52,10,FALSE)","v":1.4435214085634254}]
[]
["R","Koppelanzahl >=\n= Weideruhezeit im Sommer / Besatzzeit + 1 Koppel ","Koppelanzahl Besatzzeit",{"$f":"VLOOKUP(C10,Daten!Z45:AB52,3,FALSE)","v":"12 Stunden"},{"$f":"VLOOKUP(C10,Daten!Z45:AJ52,11,FALSE)","v":47}]
[null,null,"Koppelanzahl Besatzzeit",{"$f":"VLOOKUP(C10,Daten!Z45:AC52,4,FALSE)","v":"3 Tage"},{"$f":"VLOOKUP(C10,Daten!Z45:AK52,12,FALSE)","v":8.6666666666666679}]
[]
[null,"                                                                         "]

{"sheet":"Kurzrasenweide","index":2,"n_rows":36,"n_cols":12,"rows_kept":36,"cut":false,"hidden":false,"merged":[]}
[]
["Kurzrasenweide"]
[]
["1. Schritt: Tabelle 1 und 2 ausfüllen. Mit einem Klick ins grüne Feld erscheint ein Pfeil, mit dem eine Auswahlliste ausgeklappt werden kann. "]
["Zutreffende Angabe anwählen. "]
[null,"Tabelle 1:","Höhenlage (m ü. M.)","Boden resp. Lage","Klima","Vegetationsbeginn"]
[null,null,"unter_700","tiefgründig/gute_Lage","trocken","früh"]
[]
[null,"Tabelle 2: ","Tierkategorie","Tagesverzehr (kg TS)"]
[null,null,"Milchkühe",{"$f":"VLOOKUP(C10,Daten!Z45:AA52,2,FALSE)","v":" 14-18"}]
[]
["2. Schritt: Dick umrahmte Felder müssen betriebsspezifisch angepasst werden (Hilfe zu den Tagesverzehren pro Tier: Siehe Tabelle 2)."]
["Durch Anklicken der \"?\"-Schaltfläche erhalten Sie weitere Informationen zu den entsprechenden Zeilen. "]
[]
["Betriebs- und Standortdaten"]
[null,null,"Vorweide","Frühlingsweide","Sommerweide","Herbstweide"]
["A","Start Weidephase\n",{"$f":"VLOOKUP($C$7&$D$7&$E$7&$F$7,Daten!$AD$6:$AJ$37,7,FALSE)","v":"22. Februar"},{"$f":"VLOOKUP($C$7&$D$7&$E$7&$F$7,Daten!$AD$6:$AK$37,8,FALSE)","v":"8. April"},{"$f":"VLOOKUP($C$7&$D$7&$E$7&$F$7,Daten!$AD$6:$AL$37,9,FALSE)","v":"22. Mai"},{"$f":"VLOOKUP($C$7&$D$7&$E$7&$F$7,Daten!$AD$6:$AM$37,10,FALSE)","v":"1. September"}]
["B","Graszuwachs (kg TS/ha/Tag)\n",{"$f":"VLOOKUP($C$7&$D$7&$E$7&$F$7,Daten!$AD$6:$AF$37,3,FALSE)","v":30},{"$f":"VLOOKUP($C$7&$D$7&$E$7&$F$7,Daten!$AD$6:$AG$37,4,FALSE)","v":85},{"$f":"VLOOKUP($C$7&$D$7&$E$7&$F$7,Daten!$AD$6:$AH$37,5,FALSE)","v":35},{"$f":"VLOOKUP($C$7&$D$7&$E$7&$F$7,Daten!$AD$6:$AI$37,6,FALSE)","v":25}]
["C","Anzahl Tiere\n",40,40,40,40]
["D","Totaler Tagesverzehr pro Tier (kg TS/Tier/Tag)\n",16,16,16,16]
["E","Verzehrsanteil Weide während Vegetationsperiode (%)",60,100,100,75]
["F","Verzehr Weidefutter (kg TS/Tier/Tag)\n= (Futterbedarf - Ergänzungsfütterung)",{"$f":"C21*C20/100","v":9.6},{"$f":"D21*D20/100","v":16},{"$f":"E21*E20/100","v":16},12]
["G","Besatzstärke (Tiere/ha)\n= Graszuwachs / Tagesverzehr Weide = B / F",{"$f":"C18/C22","v":3.125},{"$f":"D18/D22","v":5.3125},2.1875,2.0833333333333335]
[]
["Futterdichten"]
[null,null,"Vorweide","Frühlingsweide","Sommerweide","Herbstweide",null," ","Tabelle 3: In den grünen Feldern gewünschte Einheit auswählen "]
["H","Ziel Bestandeshöhe (kg TS/ha)\n",193,193,433,433,null,null,"Umrechnung"]
[null,null,null,null,null,null,null,null,"von","cm_RPM","in","kg_TS_pro_ha"]
["Weideparameter",null,null,null,null,null,null,null,null,4,null,{"$f":"VLOOKUP($J$28&$L$28,Daten!$AG$67:$AH$72,2,FALSE)","v":193}]
[null,null,"Vorweide","Frühlingsweide","Sommerweide","Herbstweide",null,null,"* RPM: Rising-Plate-Meter (Platten-Herbometer)"]
["I","Flächenbedarf der Herde pro Tag (ha/Herde/Tag)\n= Verzehr Weidefutter * Anzahl Tiere / Graswachstum \n= F * C / B ",{"$f":"C22*C19/C18","v":12.8},{"$f":"D22*D19/D18","v":7.5294117647058822},18.285714285714285,19.2]
["J","Flächenbedarf pro Tier und Tag (Aren/Tier/Tag)\n= Flächenbedarf Herde / Anzahl Tiere * 100 = I / C * 100",{"$f":"C31/C19*100","v":32},{"$f":"D31/D19*100","v":18.823529411764707},45.714285714285715,48,null," "]
[]
["Zusammenfassung"]
["K"," Ø Flächenbedarf der Herde pro Tag (ha/Herde/Tag) \n= Durchschnitt Werte I",{"$f":"AVERAGE(C31:F31)","v":14.45378151260504}]
["L"," Ø Flächenbedarf pro Tier und Tag (Aren/Tier/Tag) \n= Durchschnitt Werte J",{"$f":"AVERAGE(C32:F32)","v":36.134453781512605}]

{"sheet":"Daten","index":3,"n_rows":72,"n_cols":39,"rows_kept":72,"cut":false,"hidden":true,"merged":[]}
[]
[]
[null,null,null,null,null,null,null,null,null,null,null,null,null,null,null,null,null,null,null,null,null,null,null,null,null,"Kombinationen",null,null,null,null,null,"Resultate"]
[null,null,null,null,null,null,null,null,null,null,null,"Klima",null,null,null,null,null,null,null,"Vegetationsbeginn",null,null,null,null,null,null,null,null,null,null,null,"Graswachstum",null,null,null,"Zeitraum"]
[null,"Höhenlage",null,"unter_700",null,"unter_900",null,"unter_1100",null,"über_1100",null,"tiefgründig",null,"flachgründig",null,"gute_Lage",null,"schlechte_Lage",null,"frisch",null,"trocken",null,null,null,"Höhe","Boden","Klima","Vegetation",null,null,"Phase 1","Phase 2","Phase 3","Phase 4","Phase 1","Phase 2","Phase 3","Phase 4"]
[null,"unter_700",null,"tiefgründig/gute_Lage",null,"tiefgründig",null,"gute_Lage",null,"gute_Lage",null,"frisch",null,"frisch",null,"frisch",null,"frisch",null,"früh",null,"früh",null,null,null,"unter_700","tiefgründig/gute_Lage","frisch","früh",{"$f":"Z6&AA6&AB6&AC6","v":"unter_700tiefgründig/gute_Lagefrischfrüh"},null,40,90,60,30,"22. Februar","8. April","22. Mai","1. September"]
[null,"unter_900",null,"flachgründig/schlechte_Lage",null,"flachgründig",null,"schlechte_Lage",null,"schlechte_Lage",null,"trocken",null,"trocken",null,"trocken",null,"trocken",null,"spät",null,"spät",null,null,null,"unter_700","tiefgründig/gute_Lage","frisch","spät",{"$f":"Z7&AA7&AB7&AC7","v":"unter_700tiefgründig/gute_Lagefrischspät"},null,40,90,60,30,"8. März","15. April","28. Mai","1. September"]
[null,"unter_1100",null,null,null,null,null,null,null,null,null,null,null,null,null,null,null,null,null,null,null,null,null,null,null,"unter_700","tiefgründig/gute_Lage","trocken","früh","unter_700tiefgründig/gute_Lagetrockenfrüh",null,30,85,35,25,"22. Februar","8. April","22. Mai","1. September"]
[null,"über_1100",null,null,null,null,null,null,null,null,null,null,null,null,null,null,null,null,null,null,null,null,null,null,null,"unter_700","tiefgründig/gute_Lage","trocken","spät","unter_700tiefgründig/gute_Lagetrockenspät",null,30,85,35,25,"8. März","15. April","28. Mai","1. September"]
[null,null,null,null,null,null,null,null,null,null,null,null,null,null,null,null,null,null,null,null,null,null,null,null,null,"unter_700","flachgründig/schlechte_Lage","frisch","früh","unter_700flachgründig/schlechte_Lagefrischfrüh",null,25,75,40,20,"22. Februar","8. April","22. Mai","1. September"]
[null,null,null,null,null,null,null,null,null,null,null,null,null,null,null,null,null,null,null,null,null,null,null,null,null,"unter_700","flachgründig/schlechte_Lage","frisch","spät","unter_700flachgründig/schlechte_Lagefrischspät",null,25,75,40,20,"8. März","15. April","28. Mai","1. September"]
[null,null,null,null,null,null,null,null,null,null,null,null,null,null,null,null,null,null,null,null,null,null,null,null,null,"unter_700","flachgründig/schlechte_Lage","trocken","früh","unter_700flachgründig/schlechte_Lagetrockenfrüh",null,25,70,15,20,"22. Februar","8. April","22. Mai","1. September"]
[null,null,null,null,null,null,null,null,null,null,null,null,null,null,null,null,null,null,null,null,null,null,null,null,null,"unter_700","flachgründig/schlechte_Lage","trocken","spät","unter_700flachgründig/schlechte_Lagetrockenspät",null,25,70,15,20,"8. März","15. April","28. Mai","1. September"]
[null,null,null,null,null,null,null,null,null,null,null,null,null,null,null,null,null,null,null,null,null,null,null,null,null,"unter_900","tiefgründig/gute_Lage","frisch","früh","unter_900tiefgründig/gute_Lagefrischfrüh",null,30,80,50,25,"8. März","15. April","28. Mai","1. September"]
[null,null,null,null,null,null,null,null,null,null,null,null,null,null,null,null,null,null,null,null,null,null,null,null,null,"unter_900","tiefgründig/gute_Lage","frisch","spät","unter_900tiefgründig/gute_Lagefrischspät",null,30,80,50,25,"25. März","21. April","3. Juni","1. September"]
[null,null,null,null,null,null,null,null,null,null,null,null,null,null,null,null,null,null,null,null,null,null,null,null,null,"unter_900","tiefgründig/gute_Lage","trocken","früh",{"$f":"Z16&AA16&AB16&AC16","v":"unter_900tiefgründig/gute_Lagetrockenfrüh"},null,25,75,30,20,"8. März","15. April","28. Mai","1. September"]
[null,null,null,null,null,null,null,null,null,null,null,null,null,null,null,null,null,null,null,null,null,null,null,null,null,"unter_900","tiefgründig/gute_Lage","trocken","spät","unter_900tiefgründig/gute_Lagetrockenspät",null,25,75,30,20,"25. März","21. April","3. Juni","1. September"]
[null,null,null,null,null,null,null,null,null,null,null,null,null,null,null,null,null,null,null,null,null,null,null,null,null,"unter_900","flachgründig/schlechte_Lage","frisch","früh","unter_900flachgründig/schlechte_Lagefrischfrüh",null,25,65,35,20,"8. März","15. April","28. Mai","1. September"]
[null,null,null,null,null,null,null,null,null,null,null,null,null,null,null,null,null,null,null,null,null,null,null,null,null,"unter_900","flachgründig/schlechte_Lage","frisch","spät","unter_900flachgründig/schlechte_Lagefrischspät",null,25,65,35,20,"25. März","21. April","3. Juni","1. September"]
[null,null,null,null,null,null,null,null,null,null,null,null,null,null,null,null,null,null,null,null,null,null,null,null,null,"unter_900","flachgründig/schlechte_Lage","trocken","früh","unter_900flachgründig/schlechte_Lagetrockenfrüh",null,20,60,20,15,"8. März","15. April","28. Mai","1. September"]
[null,null,null,null,null,null,null,null,null,null,null,null,null,null,null,null,null,null,null,null,null,null,null,null,null,"unter_900","flachgründig/schlechte_Lage","trocken","spät","unter_900flachgründig/schlechte_Lagetrockenspät",null,20,60,20,15,"25. März","21. April","3. Juni","1. September"]
[null,null,null,null,null,null,null,null,null,null,null,null,null,null,null,null,null,null,null,null,null,null,null,null,null,"unter_1100","tiefgründig/gute_Lage","frisch","früh","unter_1100tiefgründig/gute_Lagefrischfrüh",null,30,70,45,20,"25. März","21. April","3. Juni","22. August"]
[null,null,null,null,null,null,null,null,null,null,null,null,null,null,null,null,null,null,null,null,null,null,null,null,null,"unter_1100","tiefgründig/gute_Lage","frisch","spät","unter_1100tiefgründig/gute_Lagefrischspät",null,30,70,45,20,"8. April","27. April","9. Juni","22. August"]
[null,null,null,null,null,null,null,null,null,null,null,null,null,null,null,null,null,null,null,null,null,null,null,null,null,"unter_1100","tiefgründig/gute_Lage","trocken","früh","unter_1100tiefgründig/gute_Lagetrockenfrüh",null,30,70,45,20,"25. März","21. April","3. Juni","22. August"]
[null,null,null,null,null,null,null,null,null,null,null,null,null,null,null,null,null,null,null,null,null,null,null,null,null,"unter_1100","tiefgründig/gute_Lage","trocken","spät","unter_1100tiefgründig/gute_Lagetrockenspät",null,30,70,45,20,"8. April","27. April","9. Juni","22. August"]
[null,null,null,null,null,null,null,null,null,null,null,null,null,null,null,null,null,null,null,null,null,null,null,null,null,"unter_1100","flachgründig/schlechte_Lage","frisch","früh","unter_1100flachgründig/schlechte_Lagefrischfrüh",null,25,55,30,15,"25. März","21. April","3. Juni","22. August"]
[null,null,null,null,null,null,null,null,null,null,null,null,null,null,null,null,null,null,null,null,null,null,null,null,null,"unter_1100","flachgründig/schlechte_Lage","frisch","spät","unter_1100flachgründig/schlechte_Lagefrischspät",null,25,55,30,15,"8. April","27. April","9. Juni","22. August"]
[null,null,null,null,null,null,null,null,null,null,null,null,null,null,null,null,null,null,null,null,null,null,null,null,null,"unter_1100","flachgründig/schlechte_Lage","trocken","früh","unter_1100flachgründig/schlechte_Lagetrockenfrüh",null,25,55,30,15,"25. März","21. April","3. Juni","22. August"]
[null,null,null,null,null,null,null,null,null,null,null,null,null,null,null,null,null,null,null,null,null,null,null,null,null,"unter_1100","flachgründig/schlechte_Lage","trocken","spät","unter_1100flachgründig/schlechte_Lagetrockenspät",null,25,55,30,15,"8. April","27. April","9. Juni","22. August"]
[null,null,null,null,null,null,null,null,null,null,null,null,null,null,null,null,null,null,null,null,null,null,null,null,null,"über_1100","tiefgründig/gute_Lage","frisch","früh","über_1100tiefgründig/gute_Lagefrischfrüh",null,20,55,35,15,"8. April","27. April","9. Juni","15. August"]
[null,null,null,null,null,null,null,null,null,null,null,null,null,null,null,null,null,null,null,null,null,null,null,null,null,"über_1100","tiefgründig/gute_Lage","frisch","spät","über_1100tiefgründig/gute_Lagefrischspät",null,20,55,35,15,"24. April","3. Mai","15. Juni","15. August"]
[null,null,null,null,null,null,null,null,null,null,null,null,null,null,null,null,null,null,null,null,null,null,null,null,null,"über_1100","tiefgründig/gute_Lage","trocken","früh","über_1100tiefgründig/gute_Lagetrockenfrüh",null,20,55,35,15,"8. April","27. April","9. Juni","15. August"]
[null,null,null,null,null,null,null,null,null,null,null,null,null,null,null,null,null,null,null,null,null,null,null,null,null,"über_1100","tiefgründig/gute_Lage","trocken","spät","über_1100tiefgründig/gute_Lagetrockenspät",null,20,55,35,15,"24. April","3. Mai","15. Juni","15. August"]
[null,null,null,null,null,null,null,null,null,null,null,null,null,null,null,null,null,null,null,null,null,null,null,null,null,"über_1100","flachgründig/schlechte_Lage","frisch","früh","über_1100flachgründig/schlechte_Lagefrischfrüh",null,15,30,25,10,"8. April","27. April","9. Juni","15. August"]
[null,null,null,null,null,null,null,null,null,null,null,null,null,null,null,null,null,null,null,null,null,null,null,null,null,"über_1100","flachgründig/schlechte_Lage","frisch","spät","über_1100flachgründig/schlechte_Lagefrischspät",null,15,30,25,10,"24. April","3. Mai","15. Juni","15. August"]
[null,null,null,null,null,null,null,null,null,null,null,null,null,null,null,null,null,null,null,null,null,null,null,null,null,"über_1100","flachgründig/schlechte_Lage","trocken","früh","über_1100flachgründig/schlechte_Lagetrockenfrüh",null,15,30,25,10,"8. April","27. April","9. Juni","15. August"]
[null,null,null,null,null,null,null,null,null,null,null,null,null,null,null,null,null,null,null,null,null,null,null,null,null,"über_1100","flachgründig/schlechte_Lage","trocken","spät","über_1100flachgründig/schlechte_Lagetrockenspät",null,15,30,25,10,"24. April","3. Mai","15. Juni","15. August"]
[]
[]
[]
[]
[]
[]
[null,null,null,null,null,null,null,null,null,null,null,null,null,null,null,null,null,null,null,null,null,null,null,null,null,"Tierkategorie","Verzehr","min_Besatzzeit","max_Besatzzeit","min_Koppel","max_Koppel","min_Grösse","max_Grösse","min_Grösse_MW","max_Grösse_MW","min_Koppel","max_Koppel"]
[null,null,null,null,null,null,null,null,null,null,null,null,null,null,null,null,null,null,null,null,null,null,null,null,null,"Milchkühe"," 14-18","12 Stunden","3 Tage",0.5,3,{"$f":"Umtriebsweide!D35*Daten!AD45","v":0.2091503267973856},{"$f":"Umtriebsweide!D35*Daten!AE45","v":1.2549019607843137},{"$f":"AVERAGE(Umtriebsweide!C35:F35)*Daten!AD45","v":0.24058690142723754},{"$f":"AVERAGE(Umtriebsweide!C35:F35)*Daten!AE45","v":1.4435214085634254},{"$f":"AVERAGE(Umtriebsweide!D25:E25)/AD45+1","v":47},{"$f":"AVERAGE(Umtriebsweide!D25:E25)/AE45+1","v":8.6666666666666679}]
[null,null,null,null,null,null,null,null,null,null,null,null,null,null,null,null,null,null,null,null,null,null,null,null,null,"Mutterkühe"," 10-14","2 Tage","8 Tage",2,8,{"$f":"Umtriebsweide!D35*Daten!AD46","v":0.8366013071895424},{"$f":"Umtriebsweide!D35*Daten!AE46","v":3.3464052287581696},{"$f":"AVERAGE(Umtriebsweide!C35:F35)*Daten!AD46","v":0.96234760570895017},{"$f":"AVERAGE(Umtriebsweide!C35:F35)*Daten!AE46","v":3.8493904228358007},{"$f":"AVERAGE(Umtriebsweide!D25:E25)/AD46+1","v":12.5},{"$f":"AVERAGE(Umtriebsweide!D25:E25)/AE46+1","v":3.875}]
[null,null,null,null,null,null,null,null,null,null,null,null,null,null,null,null,null,null,null,null,null,null,null,null,null,"Galtkühe",11,"2 Tage","8 Tage",2,8,{"$f":"Umtriebsweide!D35*Daten!AD47","v":0.8366013071895424},{"$f":"Umtriebsweide!D35*Daten!AE47","v":3.3464052287581696},{"$f":"AVERAGE(Umtriebsweide!C35:F35)*Daten!AD47","v":0.96234760570895017},{"$f":"AVERAGE(Umtriebsweide!C35:F35)*Daten!AE47","v":3.8493904228358007},{"$f":"AVERAGE(Umtriebsweide!D25:E25)/AD47+1","v":12.5},{"$f":"AVERAGE(Umtriebsweide!D25:E25)/AE47+1","v":3.875}]
[null,null,null,null,null,null,null,null,null,null,null,null,null,null,null,null,null,null,null,null,null,null,null,null,null,"Ausmastkuh",15,"2 Tage","8 Tage",2,8,{"$f":"Umtriebsweide!D35*Daten!AD48","v":0.8366013071895424},{"$f":"Umtriebsweide!D35*Daten!AE48","v":3.3464052287581696},{"$f":"AVERAGE(Umtriebsweide!C35:F35)*Daten!AD48","v":0.96234760570895017},{"$f":"AVERAGE(Umtriebsweide!C35:F35)*Daten!AE48","v":3.8493904228358007},{"$f":"AVERAGE(Umtriebsweide!D25:E25)/AD48+1","v":12.5},{"$f":"AVERAGE(Umtriebsweide!D25:E25)/AE48+1","v":3.875}]
[null,null,null,null,null,null,null,null,null,null,null,null,null,null,null,null,null,null,null,null,null,null,null,null,null,"Jungvieh über 2-jährig",9,"2 Tage","8 Tage",2,8,{"$f":"Umtriebsweide!D35*Daten!AD49","v":0.8366013071895424},{"$f":"Umtriebsweide!D35*Daten!AE49","v":3.3464052287581696},{"$f":"AVERAGE(Umtriebsweide!C35:F35)*Daten!AD49","v":0.96234760570895017},{"$f":"AVERAGE(Umtriebsweide!C35:F35)*Daten!AE49","v":3.8493904228358007},{"$f":"AVERAGE(Umtriebsweide!D25:E25)/AD49+1","v":12.5},{"$f":"AVERAGE(Umtriebsweide!D25:E25)/AE49+1","v":3.875}]
[null,null,null,null,null,null,null,null,null,null,null,null,null,null,null,null,null,null,null,null,null,null,null,null,null,"Jungvieh 1-2 jährig",7,"2 Tage","8 Tage",2,8,{"$f":"Umtriebsweide!D35*Daten!AD50","v":0.8366013071895424},{"$f":"Umtriebsweide!D35*Daten!AE50","v":3.3464052287581696},{"$f":"AVERAGE(Umtriebsweide!C35:F35)*Daten!AD50","v":0.96234760570895017},{"$f":"AVERAGE(Umtriebsweide!C35:F35)*Daten!AE50","v":3.8493904228358007},{"$f":"AVERAGE(Umtriebsweide!D25:E25)/AD50+1","v":12.5},{"$f":"AVERAGE(Umtriebsweide!D25:E25)/AE50+1","v":3.875}]
[null,null,null,null,null,null,null,null,null,null,null,null,null,null,null,null,null,null,null,null,null,null,null,null,null,"Jungvieh 160-365 Tage",5.5,"2 Tage","8 Tage",2,8,{"$f":"Umtriebsweide!D35*Daten!AD51","v":0.8366013071895424},{"$f":"Umtriebsweide!D35*Daten!AE51","v":3.3464052287581696},{"$f":"AVERAGE(Umtriebsweide!C35:F35)*Daten!AD51","v":0.96234760570895017},{"$f":"AVERAGE(Umtriebsweide!C35:F35)*Daten!AE51","v":3.8493904228358007},{"$f":"AVERAGE(Umtriebsweide!D25:E25)/AD51+1","v":12.5},{"$f":"AVERAGE(Umtriebsweide!D25:E25)/AE51+1","v":3.875}]
[null,null,null,null,null,null,null,null,null,null,null,null,null,null,null,null,null,null,null,null,null,null,null,null,null,"Jungvieh < 160 Tage",2,"2 Tage","8 Tage",2,8,{"$f":"Umtriebsweide!D35*Daten!AD52","v":0.8366013071895424},{"$f":"Umtriebsweide!D35*Daten!AE52","v":3.3464052287581696},{"$f":"AVERAGE(Umtriebsweide!C35:F35)*Daten!AD52","v":0.96234760570895017},{"$f":"AVERAGE(Umtriebsweide!C35:F35)*Daten!AE52","v":3.8493904228358007},{"$f":"AVERAGE(Umtriebsweide!D25:E25)/AD52+1","v":12.5},{"$f":"AVERAGE(Umtriebsweide!D25:E25)/AE52+1","v":3.875}]
[]
[]
[null,null,null,null,null,null,null,null,null,null,null,null,null,null,null,null,null,null,null,null,null,null,null,null,null,"Umrechnung"]
[null,null,null,null,null,null,null,null,null,null,null,null,null,null,null,null,null,null,null,null,null,null,null,null,null,null,null,null,null,null,"Für UW"]
[null,null,null,null,null,null,null,null,null,null,null,null,null,null,null,null,null,null,null,null,null,null,null,null,null,"Von","kg TS/ha","cm_RPM","Clicks_RPM",null,"kg_TS_pro_ha","cm_RPM",{"$f":"AE57&AF57","v":"kg_TS_pro_hacm_RPM"},{"$f":"(Umtriebsweide!$J$30 + 767)/120/2","v":3.2104166666666667}]
[null,null,null,null,null,null,null,null,null,null,null,null,null,null,null,null,null,null,null,null,null,null,null,null,null,"kg_TS_pro_ha","cm_RPM","Clicks_RPM","cm_RPM",null,"kg_TS_pro_ha","Clicks_RPM",{"$f":"AE58&AF58","v":"kg_TS_pro_haClicks_RPM"},{"$f":"(Umtriebsweide!$J$30 +767)/120","v":6.4208333333333334}]
[null,null,null,null,null,null,null,null,null,null,null,null,null,null,null,null,null,null,null,null,null,null,null,null,null,"cm_RPM","Clicks_RPM","kg_TS_pro_ha","kg_TS_pro_ha",null,"cm_RPM","Clicks_RPM","cm_RPMClicks_RPM",{"$f":"2*Umtriebsweide!$J$30","v":7}]
[null,null,null,null,null,null,null,null,null,null,null,null,null,null,null,null,null,null,null,null,null,null,null,null,null,"Clicks_RPM",null,null,null,null,"cm_RPM","kg_TS_pro_ha","cm_RPMkg_TS_pro_ha",{"$f":"Umtriebsweide!$J$30*2*120 -767","v":73}]
[null,null,null,null,null,null,null,null,null,null,null,null,null,null,null,null,null,null,null,null,null,null,null,null,null,null,null,null,null,null,"Clicks_RPM","cm_RPM","Clicks_RPMcm_RPM",{"$f":"0.5*Umtriebsweide!$J$30","v":1.75}]
[null,null,null,null,null,null,null,null,null,null,null,null,null,null,null,null,null,null,null,null,null,null,null,null,null,null,null,null,null,null,"Clicks_RPM","kg_TS_pro_ha","Clicks_RPMkg_TS_pro_ha",{"$f":"Umtriebsweide!$J$30*120 - 767","v":-347}]
[]
[null,null,null,null,null,null,null,null,null,null,null,null,null,null,null,null,null,null,null,null,null,null,null,null,null,"Umrechnung in Futterdichte (kg TS/ha): Anzahl Clicks * 120 -767 "]
[]
[null,null,null,null,null,null,null,null,null,null,null,null,null,null,null,null,null,null,null,null,null,null,null,null,null,null,null,null,null,null,"Für KRW"]
[null,null,null,null,null,null,null,null,null,null,null,null,null,null,null,null,null,null,null,null,null,null,null,null,null,null,null,null,null,null,"kg_TS_pro_ha","cm_RPM",{"$f":"AE67&AF67","v":"kg_TS_pro_hacm_RPM"},{"$f":"(Kurzrasenweide!$J$29+767)/120/2","v":3.2124999999999999}]
[null,null,null,null,null,null,null,null,null,null,null,null,null,null,null,null,null,null,null,null,null,null,null,null,null,null,null,null,null,null,"kg_TS_pro_ha","Clicks_RPM",{"$f":"AE68&AF68","v":"kg_TS_pro_haClicks_RPM"},{"$f":"(Kurzrasenweide!$J$29 +767)/120","v":6.4249999999999998}]
[null,null,null,null,null,null,null,null,null,null,null,null,null,null,null,null,null,null,null,null,null,null,null,null,null,null,null,null,null,null,"cm_RPM","Clicks_RPM","cm_RPMClicks_RPM",{"$f":"2*Kurzrasenweide!$J$29","v":8}]
[null,null,null,null,null,null,null,null,null,null,null,null,null,null,null,null,null,null,null,null,null,null,null,null,null,null,null,null,null,null,"cm_RPM","kg_TS_pro_ha","cm_RPMkg_TS_pro_ha",{"$f":"Kurzrasenweide!$J$29*2*120 - 767","v":193}]
[null,null,null,null,null,null,null,null,null,null,null,null,null,null,null,null,null,null,null,null,null,null,null,null,null,null,null,null,null,null,"Clicks_RPM","cm_RPM","Clicks_RPMcm_RPM",{"$f":"0.5*Kurzrasenweide!$J$29","v":2}]
[null,null,null,null,null,null,null,null,null,null,null,null,null,null,null,null,null,null,null,null,null,null,null,null,null,null,null,null,null,null,"Clicks_RPM","kg_TS_pro_ha","Clicks_RPMkg_TS_pro_ha",{"$f":"Kurzrasenweide!$J$29*120 - 767","v":-287}]